Cogmind - Beta 9.2 @@@ ROGUE MODE // 2019.11.29 @ 20:57:46 Player: Demise Result: Destroyed by as-96920 with Assembled Maul Performance ------------- Evolutions (0) 0 Regions Visited (4) 800 Robots Destroyed (26) 130 Value Destroyed (503) 503 Prototype IDs (22) 440 Alien Tech Used (0) 0 Bonus (300) 300 TOTAL SCORE: 2173 Bonus ------- Aligned with FarCom 300 Cogmind --------- Core Integrity 0/250 Matter 279/300 Energy 90/100 System Corruption 4% Temperature Cool (0) Movement Walking (360) Ox8 Location -9/Mines Parts ------- > --- POWER (1) -------- (None) > --- PROPULSION (2) --- Aluminum Leg > --- UTILITY (2) ------ Humpback > --- WEAPON (2) ------- Rocket Launcher > --- INVENTORY (24) --- Heat Sink Small Storage Unit Medium Storage Unit Humpback Humpback Small Battery (100) Medium Matter Pod (100) Medium Matter Pod (100) Medium Matter Pod (100) High-capacity Matter Pod (200) High-capacity Matter Pod (200) High-capacity Matter Pod (200) Improved Sensor Array Mining Laser Peak State ------------ > --- POWER ------------ (None) > --- PROPULSION ------- Aluminum Leg > --- UTILITY ---------- Humpback > --- WEAPON ----------- AWS/Thermal > --- INVENTORY -------- Small Storage Unit Medium Storage Unit Humpback Humpback Small Battery Medium Matter Pod Medium Matter Pod Medium Matter Pod High-capacity Matter Pod High-capacity Matter Pod High-capacity Matter Pod Improved Sensor Array Assault Rifle Light Assault Rifle Rocket Launcher Mining Laser [Rating: 21] Favorites ----------- Power Ion Engine Engine Ion Engine Power Core Light Nuclear Core Propulsion Aluminum Leg Leg Aluminum Leg Wheel Wheel Utility Humpback Device Improved Sensor Array Storage Humpback Processor Terrain Scan Processor Weapon Assault Rifle Energy Gun AWS/Thermal Ballistic Gun Assault Rifle Launcher Rocket Launcher Build | -11 -10 -10 -10 -9 ------- Run | Scr Mat Min Exi Min Slots Evolved . | . . . . . Power . | . . . . . Propulsion . | . . . . . Utility . | . . . . . Weapon . | . . . . . Parts Attached 28 | 7 10 3 2 6 Power 4 | 1 3 . . . Engine 3 | 1 2 . . . Core 1 | . 1 . . . Reactor . | . . . . . Propulsion 5 | 3 . 1 . 1 Treads . | . . . . . Leg 2 | . . 1 . 1 Wheel 3 | 3 . . . . Hover . | . . . . . Flight . | . . . . . Utility 6 | 1 3 . 2 . Device 2 | . 2 . . . Storage 2 | . . . 2 . Processor 2 | 1 1 . . . Hackware . | . . . . . Protection . | . . . . . Artifact . | . . . . . Weapon 13 | 2 4 2 . 5 Energy Gun 5 | 2 1 . . 2 Energy Cannon . | . . . . . Ballistic Gun 6 | . 3 1 . 2 Ballistic Cannon . | . . . . . Launcher 2 | . . 1 . 1 Special Weapon . | . . . . . Impact Weapon . | . . . . . Slashing Weapon . | . . . . . Piercing Weapon . | . . . . . Special Melee Weapon . | . . . . . Unidentified Prototypes . | . . . . . Parts Lost 9 | . 2 4 . 3 Power 1 | . . 1 . . Propulsion 3 | . 1 1 . 1 Utility 1 | . 1 . . . Weapon 4 | . . 2 . 2 Highest Loss Streak 4 | . 1 4 . 3 Average Slot Usage (%) 60 | . 90 78 56 43 Engine 2 | . 11 . . . Core 1 | . 2 8 . . Leg 8 | . . 5 14 11 Wheel 6 | . 25 8 . . Device 4 | . 7 14 5 . Storage 8 | . . . 8 14 Processor 6 | . 14 14 8 . Energy Gun 5 | . 10 . . 7 Ballistic Gun 14 | . 17 21 14 10 Launcher 1 | . . 5 5 . Naked Turns . | . . . . . Heaviest Build 88 | 9 12 12 82 88 Greatest Support 26 | 26 20 10 10 10 Greatest Overweight (x) 29 | 1 1 1 8 29 Average Overweight (x) 2 | . . . 1 9 Largest Inventory Capacity 24 | 4 4 4 24 24 Average Capacity 14 | 4 4 4 13 24 Most Carried 19 | 4 4 4 18 19 Average Carried 10 | 3 4 3 8 17 Final Capacity 24 | 4 4 4 24 24 Final Carried 18 | 4 4 3 18 16 Class Distribution -------------------- 50% | Mutant 49% | Hauler-Mutant Dominant Class ---------------- Mutant | -10/Materials Mutant | -10/Mines Mutant | -10/Exiles Hauler-Mutant | -9/Mines Resources | -11 -10 -10 -10 -9 ----------- Run | Scr Mat Min Exi Min Matter Collected 1179 | 369 180 73 432 125 Remotely 78 | . 78 . . . Salvage Created 776 | 244 333 77 . 122 Parts 49 | 16 19 2 . 12 Haulers Intercepted 1 | . 1 . . . Recyclers Shooed . | . . . . . Parts Field Recycled . | . . . . . Retrieved Matter . | . . . . . Parts Self-Destructed . | . . . . . Prevented . | . . . . . Kills | -11 -10 -10 -10 -9 ------- Run | Scr Mat Min Exi Min Combat Hostiles Destroyed 15 | . 8 2 . 5 Guns 14 | . 8 1 . 5 AOE 1 | . . 1 . . Classes Destroyed 8 | 3 3 . . 2 Worker 3 | 2 . 1 . . Builder 1 | . . . . 1 Tunneler 5 | 5 . . . . Hauler 1 | . 1 . . . Recycler 1 | 1 . . . . Swarmer 5 | . 2 . . 3 Grunt 9 | . 6 2 . 1 Duelist 1 | . . . . 1 Best Kill Streak 6 | 5 6 2 . 3 Combat Bots Only 6 | . 6 1 . 3 Max Kills in Single Turn 2 | 1 1 2 . 1 Gunslinging . | . . . . . Exploded 1 | . . 1 . . Melee . | . . . . . Uniques/NPCs Destroyed . | . . . . . Combat | -11 -10 -10 -10 -9 -------- Run | Scr Mat Min Exi Min Damage Taken 1109 | . 416 248 . 445 Core 252 | . 62 43 . 147 Absorbed by Shields . | . . . . . Core Remaining (%) 100 | 100 . . . . Volleys Fired 65 | 15 28 9 . 13 Largest 2 | 2 2 2 . 2 Hottest 90 | 90 90 46 . 40 Shots Fired 135 | 30 56 15 . 34 Gun 132 | 30 56 13 . 33 Cannon . | . . . . . Launcher 3 | . . 2 . 1 Special . | . . . . . Kinetic 77 | . 46 13 . 18 Thermal 37 | 15 7 . . 15 Explosive 3 | . . 2 . 1 Electromagnetic 18 | 15 3 . . . Robot Hit Streak 17 | 17 12 5 . 12 Robot Miss Streak 4 | 1 4 1 . 1 Penetration Max . | . . . . . Secondary Targets 2 | . 2 . . . Max Gunslinging Chain 1 | . 1 . . . Autonomous 15 | . . . . 15 Shots Hit Robots 100 | 21 38 11 . 30 Core Hits 41 | 9 16 4 . 12 Critical Hits 1 | . . . . 1 Critical Kills . | . . . . . Critical Parts Destroyed 1 | . . . . 1 Melee Attacks . | . . . . . Impact . | . . . . . Slashing . | . . . . . Piercing . | . . . . . Sneak Attacks . | . . . . . Combat Hostiles . | . . . . . Follow-up Attacks . | . . . . . Damage Inflicted 1795 | 337 524 304 . 630 Guns 1491 | 292 524 136 . 539 Cannons . | . . . . . Explosions 304 | 45 . 168 . 91 Melee . | . . . . . Ramming . | . . . . . Kinetic 773 | . 454 136 . 183 Thermal 551 | 159 36 . . 356 Explosive 259 | . . 168 . 91 Electromagnetic 212 | 178 34 . . . Impact . | . . . . . Slashing . | . . . . . Piercing . | . . . . . Highest Corruption 4 | . 4 4 4 4 Average Corruption 3 | . 1 4 4 4 Corruption Purged . | . . . . . Effects 42 | . 1 8 14 19 Message Errors 11 | . . 1 6 4 Matter Fused 5 | . . 1 3 1 Heat Flow Errors 6 | . . 1 1 4 Energy Discharges 7 | . . 2 2 3 Parts Rejected 1 | . . . . 1 Data Loss (minor) 10 | . 1 1 2 6 Targeting Errors 2 | . . 2 . . Overload Shots . | . . . . . Overflow Damage 16 | . . 16 . . Projectiles . | . . . . . Explosions 16 | . . 16 . . Melee . | . . . . . Knockbacks . | . . . . . Impact . | . . . . . Kinetic . | . . . . . Secondary . | . . . . . Self-Inflicted Damage 140 | . . 93 . 47 Shots 3 | . . 2 . 1 Rammed . | . . . . . Targets Rammed . | . . . . . Kicked . | . . . . . Crushed . | . . . . . Highest Temperature 247 | 240 90 151 193 247 Average Temperature 61 | 92 30 42 105 82 Received Heat Transfer 369 | . 213 90 . 66 Siege Activations . | . . . . . Robots Corrupted . | . . . . . Combat Hostiles . | . . . . . Parts Fried 1 | 1 . . . . Impact Corruptions . | . . . . . Robots Melted . | . . . . . Combat Hostiles . | . . . . . Parts Melted . | . . . . . Heat Transferred 938 | 383 111 . . 444 Parts Sabotaged . | . . . . . Parts Stolen . | . . . . . Parts Stripped . | . . . . . Power Chain Reactions 1 | 1 . . . . Missiles Intercepted . | . . . . . Alert | -11 -10 -10 -10 -9 ------- Run | Scr Mat Min Exi Min Peak Influence 256 | 40 256 45 . 70 Average Influence 40 | 22 105 31 . 16 Maximum Alert Level 1 | . 1 . . . Low Security (%) 97 | 100 89 100 . 100 Level 1 2 | . 10 . . . Level 2 . | . . . . . Level 3 . | . . . . . Level 4 . | . . . . . Level 5 . | . . . . . High Security . | . . . . . Max Security . | . . . . . Squads Dispatched 2 | . 2 . . . Investigation 2 | . 2 . . . Extermination . | . . . . . Reinforcement . | . . . . . Assault . | . . . . . Garrison . | . . . . . Intercept . | . . . . . Construction Impeded . | . . . . . Haulers Reinforced . | . . . . . Stealth | -11 -10 -10 -10 -9 --------- Run | Scr Mat Min Exi Min Distress Signals . | . . . . . Communications Jammed . | . . . . . Distress Signals . | . . . . . Times Spotted 36 | . 11 3 . 22 Peak Tracking Total 21 | . 6 2 . 21 Tactical Retreats 4 | . 2 1 . 1 Traps | -11 -10 -10 -10 -9 ------- Run | Scr Mat Min Exi Min Traps Triggered 4 | . 4 . . . Indirectly . | . . . . . Trap Hack Attempts . | . . . . . Triggered . | . . . . . Disarmed . | . . . . . Reprogrammed . | . . . . . Reused . | . . . . . Traps Extracted . | . . . . . Installed . | . . . . . Triggered 1 | . . 1 . . Machines | -11 -10 -10 -10 -9 ---------- Run | Scr Mat Min Exi Min Machines Disabled 1 | . . . . 1 Max in Single Turn 1 | . . . . 1 Machines Sabotaged . | . . . . . Garrisons Compromised . | . . . . . Overloaded Fab Kills . | . . . . . Fab Network Shutdowns . | . . . . . Hacking | -11 -10 -10 -10 -9 --------- Run | Scr Mat Min Exi Min Machines Accessed 6 | . 5 . 1 . Terminals 5 | . 5 . . . Fabricators . | . . . . . Repair Stations . | . . . . . Recycling Units . | . . . . . Scanalyzers . | . . . . . Garrison Access . | . . . . . Total Hacks 16 | . 15 . 1 . Successful 8 | . 7 . 1 . Failed 8 | . 8 . . . Catastrophic 1 | . 1 . . . Database Lockouts . | . . . . . Manual 16 | . 15 . 1 . Terminals 15 | . 15 . . . Fabricators . | . . . . . Repair Stations . | . . . . . Recycling Units . | . . . . . Scanalyzers . | . . . . . Garrison Access . | . . . . . Terminal Hacks 4 | . 3 . 1 . Part Schematic 2 | . 2 . . . Branch Access Points 1 | . 1 . . . EX-Prototype ID Bank 1 | . . . 1 . Fabricator Hacks . | . . . . . Repair Station Hacks . | . . . . . Recycling Unit Hacks . | . . . . . Scanalyzer . | . . . . . Garrison Access Hacks . | . . . . . Unauthorized Hacks 14 | . 14 . . . Terminals 4 | . 4 . . . Botnet 4 | . 4 . . . Fabricators . | . . . . . Repair Stations . | . . . . . Recycling Units . | . . . . . Scanalyzers . | . . . . . Garrison Access . | . . . . . Data Cores Recovered . | . . . . . Used . | . . . . . Hacking Detections 5 | . 5 . . . Full Trace Events 1 | . 1 . . . Feedback Events . | . . . . . Feedback Blocked . | . . . . . Robot Schematics Acquired . | . . . . . Robots Built . | . . . . . Matter . | . . . . . Time . | . . . . . Total Robot Build Rating . | . . . . . Part Schematics Acquired 2 | . 2 . . . Parts Built . | . . . . . Matter . | . . . . . Time . | . . . . . Total Part Build Rating . | . . . . . Parts Repaired . | . . . . . Time . | . . . . . Parts Recycled . | . . . . . Recycled Matter . | . . . . . Retrieved Matter . | . . . . . Retrieved Components . | . . . . . Parts Scanalyzed . | . . . . . Part Schematics Acquired . | . . . . . Parts Damaged . | . . . . . Bothacking | -11 -10 -10 -10 -9 ------------ Run | Scr Mat Min Exi Min Used RIF Installer . | . . . . . Robots Hacked . | . . . . . Non-combat . | . . . . . Combat . | . . . . . Robot Hacks Applied . | . . . . . Relay Couplers Released . | . . . . . Robots Rewired . | . . . . . Allies Hacked . | . . . . . Hacks Repelled . | . . . . . Allies | -11 -10 -10 -10 -9 -------- Run | Scr Mat Min Exi Min Total Allies . | . . . . . Largest Group . | . . . . . Highest-Rated Group . | . . . . . Highest-Rated Ally . | . . . . . Total Orders . | . . . . . Ally Attacks . | . . . . . Total Damage . | . . . . . Kills . | . . . . . Allies Corrupted . | . . . . . Allies Melted . | . . . . . Intel | -11 -10 -10 -10 -9 ------- Run | Scr Mat Min Exi Min Robot Analysis Total . | . . . . . Derelict Logs Recovered 1 | . . . . 1 Drone Launches . | . . . . . Drone Recoveries . | . . . . . Exploration | -11 -10 -10 -10 -9 ------------- Run | Scr Mat Min Exi Min Turns Passed 2507 | 152 471 332 512 1040 Spaces Moved 1279 | 108 436 231 297 207 Core 30 | 17 . . . 13 Treads . | . . . . . Legs 596 | . . 105 297 194 Wheels 653 | 91 436 126 . . Hover . | . . . . . Flight . | . . . . . Fastest Speed 50 | 50 80 90 120 360 Average Speed 161 | 81 82 103 166 431 Slowest Speed 1500 | 100 90 120 360 1500 Overloaded Moves . | . . . . . Propulsion Burnouts . | . . . . . Robots Hopped . | . . . . . Cave-ins Triggered . | . . . . . Exploration Rate (%) 51 | 4 69 56 69 58 Regions Visited 4 Branch Regions 3 Pre-discovered Areas 1 | . . 1 . . Known Exits Taken 1 | . 1 . . . Unknown Exits Taken 3 | 1 . 1 1 . Scrap Searched 2 | . . 1 . 1 Spaces Dug . | . . . . . Terrain Destroyed 29 | 5 . 14 . 10 Melee . | . . . . . Projectile 3 | . . . . 3 AOE 26 | 5 . 14 . 7 Actions | -11 -10 -10 -10 -9 --------- Run | Scr Mat Min Exi Min Total 1614 | 143 504 310 320 337 Wait 193 | . 19 66 1 107 Move 1275 | 107 435 230 296 207 Hop . | . . . . . Pick Up 32 | 10 3 1 16 2 Fast Attach 14 | 4 6 2 1 1 Attach 9 | 3 . 1 . 5 Detach 4 | . . . 2 2 Swap 5 | . 4 . 1 . Drop 17 | 4 9 1 3 . Fire 65 | 15 28 9 . 13 Melee . | . . . . . Ram . | . . . . . Kick . | . . . . . Crush . | . . . . . Escape Stasis . | . . . . . Rewire . | . . . . . Trap . | . . . . . Miscellaneous . | . . . . . Route ------- -11/Scrapyard -10/Materials (discovered 2 exits: [*Mat] / *Min) -10/Mines (discovered 2 exits: [*Mat] / *Exi) -10/Exiles -9/Mines History --------- Turn | Location | Event 11 | -11/Scrapyard | Discovered new exit (range 16) 153 | -11/Scrapyard | Entered Materials 263 | -10/Materials | Identified exit to Mines 318 | -10/Materials | Build established: Mutant 369 | -10/Materials | Discovered new exit (range 16) 624 | -10/Materials | Entered Mines 629 | -10/Mines | Discovered new exit (range 4) 707 | -10/Mines | Received a Rocket Launcher from a helpful Derelict 856 | -10/Mines | Lost 4 parts (1p1n2w) 925 | -10/Mines | Learned location of Storage (-9) 951 | -10/Mines | Deemed a non-threat by the Exiles lab entrance 951 | -10/Mines | Discovered new exit (range 5) 956 | -10/Mines | Entered Exiles 989 | -10/Exiles | Met 8R-AWN 1009 | -10/Exiles | Met EX-HEX 1076 | -10/Exiles | Met EX-DEC 1096 | -10/Exiles | Met EX-BIN 1113 | -10/Exiles | Aligned with FarCom system 1114 | -10/Exiles | Given EX-Vault access code 1142 | -10/Exiles | Opened EX-Vault 1153 | -10/Exiles | Found AWS/Thermal 1177 | -10/Exiles | Warned to stay clear of 0b10 Research branches 1439 | -10/Exiles | Discovered new exit (range 10) 1468 | -10/Exiles | Left Exiles lab with AWS/Thermal 1468 | -10/Exiles | Entered Mines 1559 | -9/Mines | Build established: Hauler-Mutant 1669 | -9/Mines | Core integrity fell below 50% 2217 | -9/Mines | Core integrity fell below 20% 2251 | -9/Mines | Lost 3 parts (1n2w) 2475 | -9/Mines | Assembled infested the area 2508 | -9/Mines | Destroyed by as-96920 with Assembled Maul Last Messages --------------- 02387_ Acquired 24 matter. 02391_ R-06 Scavenger collects Aluminum Leg. 02401_ XF6HYNCOYCOWGVHRVJZNA4NMUH#YR 02417_ Acquired Aluminum Leg. 02422_ System corrupted: Energy discharge (-40). 02422_ Acquired Heat Sink. 02423_ Acquired 10 matter. 02438_ System corrupted: Component data lost. 02463_ Acquired derelict log, extracted data. Data stored: Storage entrances (x1). 02468_ System corrupted: Component data lost. 02475_ ALERT: Infestation in the mines, dispatching Demolisher response squad. 02484_ AFYC|EZKJT/CH/3GEKQHA :ARWQ1ZTIRC/H0VHH 02502_ R-06 Scavenger system corrupted by crushing effect. 02502_ R-06 Scavenger knocked back. 02503_ R-06 Scavenger system terminally corrupted. 02504_ System corrupted: AWS/Thermal rejected. 02506_ G-34 Mercenary destroyed. 02507_ U-05 Engineer destroyed. 02507_ Pressure Siphon disabled. Map ----- +----------------------------------------------------+ | ???###???# ####### #???????? | | ???# ##?# ## #######?????## ##???????? | | ???? #?# ## ##########????????????###????????? | | ????# ### #####????????????????????????????????? | | ????# ## #????????????????????????????????????? | | ???## ## ##???????????????????????????????????? | | ??## ## ##??????????????????????????????????? | | ### ## #??????????????????????????????????? | | # #??????????????????????????????????? | | #??????????????????????????????????? | | ##???????????a??????????????????????? | | ##????????????%g?????????????????????? | | ##?????????????a??????????????????????? | | ##?????????????? #?????????????????????? | | #????????????### #?????????????????????? | | ##??????????## =##????????????????????? | | ## ##????????## aa#????????????????????? | | # ### #????????# a %a#????????????????????? | | # #?# #????????? a a ????????????????????? | | ##?## ##????????? a?????????????????????? | | ##???## ##?????????? a a?????????????????????? | | #????## ##????????? #?????????????????????? | | ##????# ##????????# ##????????????????????? | | ###????## ##???????# ###??????????????????? | | ???????# ######### a ##?????????????????? | | ??????# ## =%@ #?????????????????? | | ??????## #?## * #????????????????? | | ???????##???## #### ## "" " #???????????????? | | ?????????????###??# ## """" #???????????????? | | ??????????????????# ### """" ##???????????????? | | ??????????????????# #?# ##????????????????? | | ??????????????????# #?## ##??????????????????? | | ??????????????????# #??## ###???????????????????? | | ??????????????????# #???# #?????????????????????? | | ??????????????????# #???? ?????????????????????? | | ??????????????????# #????####????????????????????? | | ??????????????????? ?????????????????????????????? | | ??????????????????? ?????????????????????????????? | | ??????????????????? ?????????????????????????????? | | ??????????????????? ?????????????????????????????? | | ??????????????????? ?????????????????????????????? | | ???????????????????"?????????????????????????????? | | ?????????????????????????????????????????????????? | | ?????????????????????????????????????????????????? | | ?????????????????????????????????????????????????? | | ?????????????????????????????????????????????????? | | ?????????????????????????????????????????????????? | | ?????????????????????????????????????????????????? | | ?????????????????????????????????????????????????? | | ?????????????????????????????????????????????????? | +----------------------------------------------------+ Best States ------------- Heat Dissipation 25 Energy Generation 14 Energy Capacity 250 Matter Stores 300 Matter Capacity 300 Sight Range 16 Robot Scan Range 13 Terrain Scan Density 85 Evasion (%) 50 Item Schematics ----------------- Hcp. Matter Pod | -10/Materials | Hacked Hcp. Battery | -10/Materials | Hacked Robot Schematics ------------------ None Fabricated ------------ Nothing Alien Tech Used ----------------- None Achievements -------------- None Challenges ------------ None Game ------ Seed VortexOpticalMachine Manual? 0 Play Time 00:20:34 Cumulative 132.9 hours Start 2019.11.29 @ 20:40:31 End 2019.11.29 @ 20:57:46 Sessions 1 Manual Loads 0 Difficulty Rogue Special Mode None Game No. 178 Rogue 167 Adventurer 11 Explorer 0 Win Type - Total 0 Types 0/0/0/0/0/0/0 Lore% 45 Gallery% 58 Achievement% 40 Wizard Run 0 Options --------- ASCII 0 Keyboard 1 Movement Numpad Keybinds 0 Fullscreen 1 Font 12/Terminus Map View 83x54 Tactical HUD 1 Map Filters NONE Filters NONE Steam 1 RUN: f12ab022-c6f4-4a3d-8bfd-6d14693a1322